bitfinex/quotes_SOLUSD_20220109
["timestamp","ask_amount","ask_price","bid_price","bid_amount"]
[1641746447537,10.6289,141.22,141.13,2.02]
[1641746448567,22.81564208,141.23,141.13,12.6483]
[1641746448941,22.81564208,141.23,141.14,1.78082586]
[1641746449140,22.81564208,141.23,141.13,2.02]
[1641746449941,33.44394208,141.23,141.13,2.02]
[1641746450643,10.6283,141.23,141.13,2.02]
[1641746450844,34.3674,141.25,141.13,3.80082586]
[1641746451143,0.25,141.24,141.13,3.80082586]
[1641746451743,41.03288552,141.24,141.13,14.17912586]
[1641746451945,1.77,141.23,141.13,14.17912586]
[1641746452143,41.03288552,141.24,141.14,0.25]
[1641746452346,40.78288552,141.24,141.14,0.25]
[1641746453347,0.25,141.23,141.13,3.55082586]
[1641746453544,0.25,141.23,141.13,1.77]
[1641746453743,10.47,141.23,141.13,1.77]
[1641746453946,1.77,141.22,141.1,22.7329]
[1641746454244,1.77,141.22,141.11,0.25]
[1641746454444,0.25,141.21,141.11,0.25]
[1641746454850,10.6306,141.2,141.11,0.25]
[1641746455945,10.6306,141.2,141.09,1.77]
[1641746455946,0.25,141.19,141.09,1.77]
[1641746456148,0.25,141.19,141.08,90.3888]
[1641746456149,10.6324,141.18,141.08,90.3888]
[1641746456445,0.25,141.17,141.08,88.6188]
[1641746456745,33.58325322,141.18,141.08,88.6188]
[1641746457746,33.58325322,141.18,141.09,0.25]
[1641746457948,10.6324,141.18,141.09,0.25]
[1641746459047,10.6324,141.18,141.09,12.6513]
[1641746459246,0.25,141.19,141.09,12.6513]
[1641746459648,34.19790363,141.2,141.09,12.6513]
[1641746460048,34.19790363,141.2,141.09,14.43212586]
[1641746460248,10.6311,141.2,141.09,14.43212586]
[1641746460449,24.6694,141.21,141.1,0.26]
[1641746460752,3.98041995,141.23,141.11,10.22]
[1641746460951,3.98041995,141.23,141.12,0.51]
[1641746461149,3.98041995,141.23,141.12,12.51082586]
[1641746461350,31.76913361,141.26,141.12,12.25082586]
[1641746461561,10.6268,141.25,141.13,1.78082586]
[1641746461754,10.8768,141.25,141.13,3.55082586]
[1641746461955,10.6268,141.25,141.14,0.51]
[1641746462154,10.6268,141.25,141.15,1.77]
[1641746462365,10.6268,141.25,141.16,0.25]
[1641746463158,29.96941995,141.27,141.16,9.27482586]
[1641746463357,28.19941995,141.27,141.17,1.77]
[1641746463783,28.19941995,141.27,141.18,0.25]
[1641746464185,24.219,141.27,141.18,0.25]
[1641746464783,24.219,141.27,141.19,10.6236]
[1641746464986,24.219,141.27,141.2,0.25]
[1641746466383,24.219,141.27,141.2,3.25]
[1641746466684,23.3935,141.28,141.2,3.25]
[1641746467082,23.3935,141.28,141.2,13.873]
[1641746467686,23.3935,141.28,141.2,15.65382586]
[1641746468084,23.3935,141.28,141.2,13.873]
[1641746469085,22.8935,141.28,141.2,13.873]
[1641746469286,22.8935,141.28,141.2,0.25]
[1641746469486,33.518,141.28,141.18,0.25]
[1641746470294,10.47,141.27,141.17,1.77]
[1641746470488,28.19352724,141.26,141.15,1.78082586]
[1641746470687,38.41352724,141.26,141.13,74.325]
[1641746470887,0.25,141.25,141.13,74.325]
[1641746471087,1.77,141.24,141.13,74.325]
[1641746471490,0.25,141.23,141.14,0.25]
[1641746471987,10.629,141.22,141.14,0.25]
[1641746474093,3.0,141.21,141.14,0.25]
[1641746475397,13.6298,141.21,141.13,0.25]
[1641746475596,24.2902234,141.2,141.13,0.25]
[1641746475799,24.2902234,141.2,141.12,0.25]
[1641746476396,10.8813,141.19,141.11,1.77]
[1641746477597,10.8813,141.19,141.09,78.5048]
[1641746477798,10.8813,141.19,141.1,0.25]
[1641746481004,0.25,141.19,141.1,0.25]
[1641746481204,41.36741995,141.21,141.1,2.03082586]
[1641746481404,28.96701995,141.21,141.1,12.92142586]
[1641746481603,28.96701995,141.21,141.1,12.66142586]
[1641746482202,24.9866,141.21,141.1,12.66142586]
[1641746482804,35.6163,141.21,141.1,12.66142586]
[1641746483608,35.6163,141.21,141.11,1.77]
[1641746484007,35.6163,141.21,141.12,0.25]
[1641746485911,35.6163,141.21,141.11,0.25]
[1641746486311,0.25,141.2,141.09,1.77]
[1641746486511,10.6329,141.17,141.08,10.22]
[1641746486812,10.6329,141.17,141.09,0.25]
[1641746488411,10.6329,141.17,141.08,10.22]
[1641746489916,10.6329,141.17,141.09,0.25]
[1641746490817,10.6319,141.19,141.09,0.25]
[1641746491016,0.25,141.18,141.09,0.25]
[1641746491416,0.25,141.18,141.08,20.8519]
[1641746491817,10.6328,141.17,141.08,10.22]
[1641746492219,0.25,141.16,141.08,10.22]
[1641746492416,0.25,141.16,141.05,22.8049]
[1641746492417,0.25,141.16,141.05,11.99]
[1641746492618,1.77,141.15,141.03,72.3736]
[1641746492821,10.6373,141.11,141.03,72.3736]
[1641746493217,0.25,141.1,141.03,72.3736]
[1641746494419,30.86546163,141.12,141.03,72.3736]
[1641746494420,0.25,141.11,141.03,72.3736]
[1641746494619,11.494221,141.1,141.03,72.3736]
[1641746494820,22.132221,141.1,141.0,11.99]
[1641746495019,0.25,141.09,141.0,10.22]
[1641746495218,24.3604,141.11,141.01,1.772]
[1641746496019,24.1104,141.11,141.02,0.25]
[1641746496222,10.6378,141.11,141.02,10.8866]
[1641746496720,10.6378,141.11,141.02,0.25]
[1641746497351,12.4098,141.11,141.02,0.25]
[1641746497549,10.6395,141.08,141.02,0.25]
[1641746498349,10.6395,141.08,141.01,1.772]
[1641746498550,10.6413,141.06,140.96,1.772]
[1641746498751,38.76748872,141.06,140.96,1.772]
[1641746499054,10.6413,141.06,140.96,1.772]
[1641746499650,10.6413,141.06,140.96,12.4132]
[1641746499852,10.6413,141.06,140.97,0.25]
[1641746500956,23.5212,141.07,140.97,10.8903]
[1641746501151,23.5212,141.07,140.98,1.772]
[1641746501554,0.25,141.07,140.99,0.25]
[1641746501753,10.22,141.1,140.99,0.25]
[1641746501953,10.22,141.1,141.0,1.772]
[1641746502254,20.8586,141.1,141.0,1.772]
[1641746502454,20.8586,141.1,141.01,0.25]
[1641746502653,10.22,141.1,141.01,0.25]
[1641746504260,20.8582,141.1,141.01,0.25]
[1641746505057,0.25,141.09,141.01,0.25]
[1641746505458,0.25,141.09,141.0,0.25]
[1641746505658,10.6411,141.06,141.0,0.25]
[1641746507360,33.0990951,141.06,140.98,0.25]
[1641746507859,10.6411,141.06,140.98,0.25]
[1641746508262,10.6411,141.06,140.96,11.742]
[1641746508462,10.6411,141.06,140.96,85.414]
[1641746508960,0.25,141.05,140.96,96.055]
[1641746509162,0.25,141.05,140.96,94.283]
[1641746510264,10.6411,141.06,140.97,0.25]
[1641746510461,10.6411,141.06,140.97,2.022]
[1641746512066,10.6411,141.06,140.97,12.6624]
[1641746513063,10.6402,141.08,140.97,12.6624]
[1641746513263,22.8768,141.11,140.98,0.26]
[1641746513264,24.6488,141.11,140.98,0.26]
[1641746513564,22.8768,141.11,140.98,10.8991]
[1641746513962,45.8472,141.11,140.99,0.25]
[1641746514162,10.6391,141.09,140.99,0.25]
[1641746514363,10.6391,141.09,141.0,1.772]
[1641746514767,10.6391,141.09,141.01,0.25]
[1641746514964,0.25,141.08,141.01,0.25]
[1641746515464,10.8899,141.08,141.0,0.25]
[1641746516364,10.6399,141.08,141.0,0.25]
[1641746516564,10.6399,141.08,140.99,0.25]
[1641746517566,10.6388,141.1,140.99,0.25]
[1641746517867,45.8472,141.11,141.01,10.6373]
[1641746518267,45.8472,141.11,141.02,0.25]
[1641746518967,0.25,141.1,141.02,0.25]
[1641746519469,0.25,141.1,141.01,0.25]
[1641746520069,10.22,141.12,141.01,10.8871]
[1641746520269,4.00325203,141.14,141.02,1.772]
[1641746520471,0.25,141.13,141.02,78.9805]
[1641746520873,4.00325203,141.15,141.02,78.9805]
[1641746521171,4.00325203,141.15,141.08,10.632]
[1641746521370,4.00325203,141.15,141.08,16.259]
[1641746521569,199.82724386,141.19,141.09,0.25]
[1641746521570,4.00325203,141.18,141.09,0.25]
[1641746521970,4.00325203,141.18,141.06,26.6387]
[1641746522173,4.00325203,141.18,141.07,0.25]
[1641746522374,14.63555203,141.18,141.07,0.25]
[1641746522571,38.50525203,141.18,141.07,0.25]
[1641746522971,34.502,141.18,141.07,0.25]
[1641746523171,0.25,141.17,141.06,23.3787]
[1641746523373,2.02,141.17,141.06,23.3787]
[1641746523601,1.77,141.17,141.06,23.3787]
[1641746523800,5.77325203,141.17,141.06,23.3787]
[1641746524402,0.25,141.16,141.07,0.25]
[1641746524804,10.8839,141.16,141.07,0.25]
[1641746525001,3.0,141.15,141.07,0.25]
[1641746525401,0.25,141.16,141.07,0.25]
[1641746525601,3.25,141.17,141.07,0.25]
[1641746525903,13.8831,141.17,141.07,0.25]
[1641746527005,13.3831,141.17,141.07,0.25]
[1641746527206,0.25,141.16,141.07,0.25]
[1641746527608,10.8837,141.16,141.07,0.25]
[1641746530411,10.8837,141.16,141.06,25.1487]
[1641746530613,10.8837,141.16,141.07,0.25]
[1641746530813,10.8837,141.16,141.06,23.3787]
[1641746531013,10.8837,141.16,141.05,10.22]
[1641746532213,10.8837,141.16,141.06,0.25]
[1641746532615,10.6359,141.13,141.06,0.25]
[1641746532814,41.73589622,141.13,141.06,0.25]
[1641746533015,0.25,141.12,141.04,78.922]
[1641746533215,0.25,141.12,141.01,1.772]
[1641746533415,0.25,141.12,141.04,0.25]
[1641746533617,20.503146,141.11,141.04,0.25]
[1641746533818,10.6391,141.09,141.04,0.25]
[1641746534417,10.6391,141.09,141.01,0.25]
[1641746534849,10.6391,141.09,141.0,79.3029]
[1641746535019,10.8897,141.08,141.0,77.5309]
[1641746535220,10.8897,141.08,141.0,101.8168]
[1641746536019,10.6397,141.08,141.0,101.8168]
[1641746536218,10.6388,141.1,141.01,0.25]
[1641746536421,0.25,141.09,141.01,2.022]
[1641746536619,10.6388,141.1,141.01,2.022]
[1641746537019,0.25,141.09,141.01,2.022]
[1641746538721,10.6389,141.09,141.01,0.25]
[1641746539324,10.6389,141.09,141.0,103.5888]
[1641746539524,21.62701,141.08,141.0,77.5309]
[1641746539722,41.2513456,141.07,141.0,77.5309]
[1641746539924,0.25,141.06,141.0,77.5309]
[1641746540524,11.483797,141.05,141.0,77.5309]
[1641746540727,22.125897,141.05,140.97,25.7011]
[1641746541024,3.0,141.04,140.97,1.772]
[1641746541423,3.0,141.04,140.98,0.25]
[1641746544162,3.0,141.04,140.97,0.25]
[1641746546259,22.5116,141.08,140.98,1.772]
[1641746546461,22.5116,141.08,140.99,0.25]
[1641746546660,10.22,141.11,140.99,2.03082586]
[1641746547061,24.19078938,141.1,140.99,2.03082586]
[1641746547763,34.82968938,141.1,140.99,12.66922586]
[1641746547964,0.25,141.09,140.99,12.66922586]
[1641746548164,0.25,141.09,141.05,1.0518]
[1641746548565,11.477298,141.08,141.05,1.0518]
[1641746548766,3.0321,141.07,141.05,1.0518]
[1641746549366,0.5321,141.07,141.05,1.0518]
[1641746550471,0.5321,141.07,141.06,0.25]
[1641746550668,51.45435203,141.15,141.06,0.25]
[1641746550872,49.68235203,141.15,141.06,0.25]
[1641746551070,10.6366,141.13,141.06,0.25]
[1641746552768,4.382238,141.12,141.06,0.25]
[1641746552968,10.6366,141.13,141.06,0.25]
[1641746554268,3.0,141.12,141.06,0.25]
[1641746555068,3.0,141.13,141.06,0.25]
[1641746555269,14.476478,141.13,141.05,2.8218]
[1641746555467,22.580819,141.12,141.05,1.0518]
[1641746555668,16.031009,141.11,141.05,1.0518]
[1641746555870,10.6373,141.12,141.05,1.0518]
[1641746556074,3.0,141.13,141.05,1.0518]
[1641746556771,4.94562605,141.13,141.05,1.0518]
[1641746556971,4.94562605,141.13,141.06,0.25]
[1641746557371,1.94562605,141.13,141.06,0.25]
[1641746557672,25.58652605,141.14,141.06,0.25]
[1641746558874,25.58652605,141.14,141.06,10.8833]
[1641746559374,25.58652605,141.14,141.06,18.9883]
[1641746559573,1.94562605,141.14,141.06,18.9883]
[1641746559773,1.94562605,141.14,141.06,20.76912586]
[1641746559972,1.94562605,141.14,141.1,10.6293]
[1641746560175,1.94562605,141.14,141.1,18.3623]
[1641746560375,1.94562605,141.14,141.11,0.25]
[1641746560574,1.94562605,141.16,141.12,5.53009997]
[1641746560973,1.94562605,141.16,141.13,0.25]
[1641746561176,1.94562605,141.16,141.13,10.878]
[1641746561775,1.94562605,141.16,141.14,5.53009997]
[1641746562175,2.47772604,141.16,141.14,5.53009997]
[1641746562376,0.53209999,141.16,141.12,10.6291]
[1641746562576,1.94562605,141.18,141.1,35.6841]
[1641746562775,1.94562605,141.18,141.1,59.45792586]
[1641746562976,1.94562605,141.18,141.1,57.6771]
[1641746563179,1.94562605,141.21,141.1,57.6771]
[1641746563378,1.94562605,141.21,141.15,10.6267]
[1641746563782,1.94562605,141.21,141.16,0.25]
[1641746565583,1.94562605,141.22,141.16,0.25]
[1641746565782,1.94562605,141.22,141.14,1.77]
[1641746565982,1.94562605,141.22,141.15,0.25]
[1641746566883,37.02272605,141.23,141.15,0.25]
[1641746568486,0.25,141.22,141.14,1.77]
[1641746568710,10.6295,141.21,141.14,1.77]
[1641746568913,0.25,141.2,141.14,1.77]
[1641746569111,0.25,141.2,141.12,72.2948]
[1641746569314,0.25,141.2,141.13,0.25]
[1641746569512,0.25,141.2,141.12,72.2948]
[1641746570113,1.94562605,141.21,141.12,72.2948]
[1641746570512,3.0,141.2,141.12,82.9239]
[1641746570711,3.25,141.2,141.12,82.9239]
[1641746570914,3.25,141.2,141.12,10.6291]
[1641746571113,26.7418558,141.19,141.08,37.2009]
[1641746571313,1.77,141.18,141.07,10.22]
[1641746571516,1.77,141.18,141.05,27.1581]
[1641746571517,25.5464,141.18,141.05,1.0518]
[1641746571912,35.7664,141.18,141.05,1.0518]
[1641746572111,1.94562605,141.17,141.05,1.0518]
[1641746572312,1.77,141.16,141.05,1.0518]
[1641746572514,10.6341,141.15,141.05,13.4559]
[1641746572814,10.6341,141.15,141.05,85.8009]
[1641746573015,0.25,141.14,141.05,85.8009]
[1641746573214,1.77,141.13,141.05,1.0518]
[1641746573416,0.25,141.12,140.98,3.77314668]
[1641746573614,10.6406,141.05,140.98,2.00314668]
[1641746573816,26.32286794,141.04,140.98,2.00314668]
[1641746574020,26.57286794,141.04,140.96,3.69719614]
[1641746574214,3.0,141.03,140.94,1.772]
[1641746574415,0.25,141.02,140.94,1.772]
[1641746574613,0.25,141.02,140.93,3.77514668]
[1641746574914,3.0,141.03,140.93,3.77514668]
[1641746575113,10.6431,141.02,140.94,10.6424]
[1641746575914,3.0,141.03,140.95,0.51]
[1641746576113,10.22,141.07,140.99,10.6386]
[1641746576414,3.0,141.06,141.0,2.022]
[1641746576621,3.0,141.06,141.0,0.25]
[1641746577215,13.6397,141.06,141.0,0.25]
[1641746577415,10.6397,141.06,141.0,0.25]
[1641746580125,10.6397,141.06,140.98,0.25]
[1641746581025,10.6397,141.06,140.96,78.1862]
[1641746581424,10.6397,141.06,140.96,88.8266]
[1641746582724,10.6397,141.06,140.97,0.25]
[1641746583124,10.6397,141.06,140.96,88.8266]
[1641746583524,10.6397,141.06,140.96,90.60742586]
[1641746583725,10.22,141.08,140.97,0.26]
[1641746583924,1.94562605,141.12,141.03,10.6357]
[1641746584127,1.94562605,141.12,141.03,17.7937]
[1641746584525,1.94562605,141.12,141.04,0.25]
[1641746584825,10.6357,141.11,141.01,81.0601]
[1641746585025,10.6357,141.11,141.04,0.25]
[1641746585425,0.25,141.1,141.04,0.25]
[1641746585629,10.6357,141.11,141.04,0.25]
[1641746585825,10.6357,141.11,141.04,8.88]
[1641746586027,10.6357,141.11,141.04,10.652]
[1641746587129,10.6357,141.11,141.04,8.88]
[1641746587631,57.7582,141.15,141.04,8.88]
[1641746587830,142.23665288,141.16,141.05,3.81082586]
[1641746588129,142.23665288,141.16,141.05,6.81082586]
[1641746588327,142.23665288,141.16,141.06,2.03082586]
[1641746588528,142.23665288,141.16,141.07,2.03]
[1641746588828,142.23665288,141.16,141.08,10.22]
[1641746589030,142.23665288,141.16,141.11,10.6295]
[1641746589228,142.23665288,141.16,141.11,18.2325]
[1641746589432,36.19961033,141.21,141.12,0.25]
[1641746589433,1.94562605,141.2,141.12,0.25]
[1641746590032,0.25,141.19,141.12,0.25]
[1641746590430,0.25,141.2,141.12,0.25]
[1641746591332,10.8798,141.2,141.12,0.25]
[1641746593037,10.8798,141.2,141.11,10.6295]
[1641746593234,10.8798,141.2,141.12,0.25]
[1641746593434,10.8798,141.2,141.1,10.6305]
[1641746593639,10.8798,141.2,141.09,77.9549]
[1641746593640,21.0998,141.2,141.09,77.9549]
[1641746593833,1.77,141.19,141.09,1.77]
[1641746594236,0.25,141.18,141.09,1.77]
[1641746594439,0.25,141.18,141.06,10.22]
[1641746594737,3.25,141.18,141.07,1.77]
[1641746594967,1.94562605,141.19,141.07,1.77]
[1641746595166,61.83612605,141.2,141.07,1.77]
[1641746595368,0.25,141.18,141.08,0.25]
[1641746595967,1.94562605,141.19,141.08,0.25]
[1641746596168,1.94562605,141.19,141.07,2.02]
[1641746596371,10.6316,141.18,141.07,2.02]
[1641746596568,60.06612605,141.2,141.09,10.6311]
[1641746596769,12.16562605,141.2,141.1,1.77]
[1641746596972,1.94562605,141.2,141.1,17.28082586]
[1641746597171,1.94562605,141.2,141.1,15.5]
[1641746597368,12.57352605,141.23,141.11,1.78082586]
[1641746597770,12.57352605,141.23,141.12,0.51]
[1641746597975,12.57352605,141.23,141.12,7.981]
[1641746598169,1.94562605,141.23,141.13,0.07]
[1641746598369,1.94562605,141.24,141.15,10.6265]
[1641746598872,1.94562605,141.24,141.16,0.25]
[1641746599069,12.57212605,141.24,141.16,0.25]
[1641746599474,12.57212605,141.24,141.15,10.6265]
[1641746599673,12.57212605,141.24,141.16,0.25]
[1641746600773,10.8778,141.23,141.13,84.2746]
[1641746601073,10.8778,141.23,141.14,0.25]
[1641746601475,12.82342605,141.23,141.14,0.25]
[1641746602274,10.8778,141.23,141.14,0.25]
[1641746603077,12.82342605,141.23,141.13,73.6471]
[1641746603377,1.77,141.22,141.11,10.629]
[1641746603579,10.6304,141.19,141.11,10.879]
[1641746604180,10.6304,141.19,141.11,12.649]
[1641746604379,1.94562605,141.21,141.11,12.649]
[1641746604582,1.94562605,141.21,141.11,18.708]
[1641746604780,12.57412605,141.22,141.11,18.708]
[1641746604982,0.25,141.21,141.11,18.708]
[1641746605880,10.8786,141.21,141.11,18.708]
[1641746606181,1.77,141.2,141.11,10.879]
[1641746606381,28.58794026,141.19,141.11,10.879]
[1641746606983,28.33794026,141.19,141.11,10.879]
[1641746608987,12.57412605,141.21,141.11,10.879]
[1641746609386,1.94562605,141.21,141.11,10.879]
[1641746609791,1.94562605,141.21,141.12,1.77]
[1641746609988,29.80559901,141.2,141.13,0.25]
[1641746610893,29.80559901,141.2,141.12,12.3983]
[1641746611090,29.80559901,141.2,141.1,12.3998]
[1641746611293,0.25,141.19,141.1,10.6298]
[1641746611690,10.8799,141.19,141.1,10.6298]
[1641746612293,12.82552605,141.19,141.11,0.25]
[1641746613092,12.57552605,141.19,141.11,0.25]
[1641746613493,12.57552605,141.19,141.09,78.3803]
[1641746613718,10.6299,141.19,141.08,12.4013]
[1641746613916,12.3999,141.19,141.08,12.4013]
[1641746614318,1.94562605,141.16,141.08,12.4013]
[1641746614524,1.94562605,141.16,141.09,3.26]
[1641746614717,1.94562605,141.16,141.1,10.6298]
[1641746614919,1.94562605,141.16,141.08,1.77]
[1641746615319,1.94562605,141.16,141.09,0.25]
[1641746615617,1.94562605,141.18,141.09,0.25]
[1641746616217,1.94562605,141.16,141.09,0.25]
[1641746616417,1.94562605,141.16,141.08,0.25]
[1641746616616,1.94562605,141.16,141.09,12.4012]
[1641746617018,12.57702605,141.17,141.1,0.25]
[1641746617421,12.57702605,141.17,141.07,1.77]
[1641746617717,1.94562605,141.15,141.08,0.25]
[1641746617917,29.86607776,141.14,141.08,0.25]
[1641746618416,31.81170381,141.14,141.08,0.25]
[1641746618617,31.81170381,141.14,141.07,1.77]
[1641746618817,31.81170381,141.14,141.04,86.825]
[1641746619017,42.44550381,141.14,141.04,85.055]
[1641746619817,1.94562605,141.13,141.04,85.055]
[1641746620023,12.58052605,141.13,141.05,0.25]
[1641746621321,12.58052605,141.13,141.05,2.28]
[1641746621520,12.58052605,141.13,141.05,2.02]
[1641746621824,10.6349,141.13,141.05,2.02]
[1641746622020,5.77325203,141.17,141.1,0.30450009]
[1641746622220,5.77325203,141.17,141.11,1.77]
[1641746622420,6.00487805,141.19,141.12,0.25]
[1641746622622,4.00325203,141.21,141.12,0.25]
[1641746623020,26.59440672,141.2,141.12,0.25]
[1641746623221,37.22530672,141.2,141.12,0.25]
[1641746624222,10.6298,141.22,141.13,1.78082586]
[1641746624423,10.6298,141.22,141.14,0.25]
[1641746624822,10.6298,141.22,141.14,2.02]
[1641746625327,41.55284328,141.21,141.14,2.02]
[1641746625523,41.55284328,141.21,141.14,0.25]
[1641746625923,30.92264328,141.21,141.14,0.25]
[1641746626722,20.8483,141.24,141.14,2.03082586]
[1641746627122,0.25,141.23,141.14,0.25]
[1641746627322,10.22,141.24,141.14,0.25]
[1641746627526,10.22,141.24,141.13,2.02]
[1641746627723,25.99965542,141.23,141.13,2.02]
[1641746627925,25.99965542,141.23,141.13,3.80082586]
[1641746628523,25.99965542,141.23,141.13,14.42902586]
[1641746628722,25.99965542,141.23,141.13,3.80082586]
[1641746629124,25.99965542,141.23,141.13,2.03082586]
[1641746629824,25.99965542,141.23,141.13,12.65882586]
[1641746631426,25.99965542,141.23,141.14,1.77]
[1641746631636,25.99965542,141.23,141.15,10.6261]
[1641746631828,25.99965542,141.23,141.15,10.8761]
[1641746634330,25.99965542,141.23,141.15,12.65692586]
[1641746634731,25.99965542,141.23,141.15,12.40692586]
[1641746634931,25.99965542,141.23,141.15,10.6261]
[1641746635835,25.99965542,141.23,141.15,12.40692586]
[1641746636034,14.22325203,141.26,141.15,12.40692586]
[1641746636235,14.22325203,141.26,141.16,1.77]
[1641746636435,14.22325203,141.26,141.16,10.6258]
[1641746636636,14.22325203,141.26,141.16,12.40662586]
[1641746636835,10.22,141.26,141.17,0.25]
[1641746637136,23.56847952,141.25,141.17,0.25]
[1641746638336,23.56847952,141.25,141.17,10.8752]
[1641746638937,23.56847952,141.25,141.17,0.25]
[1641746639338,23.56847952,141.25,141.15,10.8764]
[1641746640339,34.19567952,141.25,141.15,10.8764]
[1641746640545,0.25,141.24,141.14,1.78082586]
[1641746640839,0.25,141.24,141.13,88.424]
[1641746641641,2.02,141.24,141.13,88.424]
[1641746642544,2.02,141.24,141.14,0.25]
[1641746642743,46.213682,141.23,141.14,0.25]
[1641746642945,35.642442,141.22,141.14,0.25]
[1641746643145,35.642442,141.22,141.09,26.4077]
[1641746643146,35.642442,141.22,141.12,0.25]
[1641746643344,0.25,141.22,141.09,38.40852586]
[1641746643546,1.77,141.21,141.09,12.00082586]
[1641746643743,1.77,141.21,141.09,10.22]
[1641746643943,0.25,141.2,141.09,10.22]
[1641746644142,10.632,141.19,141.09,10.22]
[1641746644344,26.08791474,141.18,141.09,10.22]
[1641746644543,26.33791474,141.18,141.09,10.22]
[1641746644744,26.33791474,141.18,141.1,0.25]
[1641746645143,36.97021474,141.18,141.09,0.25]
[1641746645944,26.33791474,141.18,141.09,0.25]
[1641746646345,26.33791474,141.18,141.09,2.03082586]
[1641746646544,10.6313,141.2,141.09,12.66192586]
[1641746646746,10.6313,141.2,141.1,1.77]
[1641746646945,10.6313,141.2,141.11,0.25]
[1641746647570,25.01490796,141.19,141.11,0.25]
[1641746647773,25.01490796,141.19,141.12,1.77]
[1641746647972,25.01490796,141.19,141.13,0.25]
[1641746649775,25.01490796,141.19,141.11,0.25]
[1641746651974,25.01490796,141.19,141.12,1.77]
[1641746652175,10.6313,141.2,141.12,1.77]
[1641746652375,23.0297,141.21,141.13,0.25]
[1641746653477,23.0297,141.21,141.12,0.25]
[1641746655892,23.0297,141.21,141.12,12.65972586]
[1641746656091,23.0297,141.21,141.12,12.40972586]
[1641746656290,23.0297,141.21,141.13,0.25]
[1641746656490,23.0297,141.21,141.13,2.02]
[1641746656990,24.36961774,141.22,141.13,14.42872586]
[1641746659990,24.36961774,141.22,141.13,12.65872586]
[1641746661692,24.36961774,141.22,141.13,2.03082586]
[1641746661896,0.25,141.21,141.13,0.25]
[1641746662097,0.25,141.21,141.11,24.3323]
[1641746662695,0.25,141.21,141.1,24.9667]
[1641746662894,10.8804,141.21,141.1,35.5971]
[1641746663095,10.8804,141.21,141.1,37.37792586]
[1641746663798,24.36961774,141.22,141.1,37.37792586]
[1641746663994,24.36961774,141.22,141.11,0.25]
[1641746664194,24.36961774,141.22,141.12,10.6286]
[1641746664395,0.25,141.21,141.12,1.78082586]
[1641746664900,10.47,141.21,141.1,24.9667]
[1641746665198,10.22,141.21,141.1,24.9667]
[1641746665398,10.22,141.21,141.11,1.78082586]
[1641746665598,23.1418,141.23,141.12,11.99]
[1641746665797,4.00325203,141.22,141.12,12.5]
[1641746665999,4.00325203,141.22,141.13,3.0]
[1641746666227,4.00325203,141.22,141.14,11.99]
[1641746666530,4.00325203,141.22,141.18,10.6233]
[1641746666728,8.01248971,141.26,141.18,18.1463]
[1641746666930,8.01248971,141.26,141.19,0.25]
[1641746667530,8.01248971,141.26,141.17,75.1801]
[1641746667731,5.77325203,141.27,141.17,75.1801]
[1641746667930,5.77325203,141.27,141.14,10.22]
[1641746668133,28.72745203,141.27,141.14,10.22]